[Event "*** Titled Tuesday Blitz"]
[Site "Chess.com"]
[Date "2021.03.09"]
[Round "9"]
[White "DinaBelenkaya"]
[Black "MerryPoppies"]
[Result "1/2-1/2"]
[WhiteElo "2346"]
[BlackElo "2197"]
[TimeControl "180+1"]
[EndTime "11:47:50 PST"]
[Termination "Game drawn by repetition"]

1. e4 {[%clk 0:03:00.9]} 1... c6 {[%clk 0:02:56.1]} 2. d3 {[%clk 0:02:58.1]}
2... d5 {[%clk 0:02:56.4]} 3. Nd2 {[%clk 0:02:55.6]} 3... dxe4 {[%clk
0:02:41.2]} 4. dxe4 {[%clk 0:02:55]} 4... e5 {[%clk 0:02:37.3]} 5. Ngf3 {[%clk
0:02:51.2]} 5... Bd6 {[%clk 0:02:34.7]} 6. Bc4 {[%clk 0:02:51.1]} 6... Nf6
{[%clk 0:02:33.9]} 7. O-O {[%clk 0:02:49.7]} 7... O-O {[%clk 0:02:33.4]} 8. c3
{[%clk 0:02:46.8]} 8... Bg4 {[%clk 0:02:31.5]} 9. a4 {[%clk 0:02:46.1]} 9... a5
{[%clk 0:02:27.3]} 10. h3 {[%clk 0:02:38.9]} 10... Bh5 {[%clk 0:02:24.8]} 11.
Qc2 {[%clk 0:02:34.7]} 11... Nbd7 {[%clk 0:02:22.3]} 12. g4 {[%clk 0:02:34.8]}
12... Bg6 {[%clk 0:02:21.4]} 13. Rd1 {[%clk 0:02:19.1]} 13... Qe7 {[%clk
0:02:17.9]} 14. Nh4 {[%clk 0:02:11.6]} 14... Nb6 {[%clk 0:02:06.3]} 15. Ba2
{[%clk 0:02:10.2]} 15... Rad8 {[%clk 0:01:40.4]} 16. b3 {[%clk 0:01:06.2]} 16...
Bc5 {[%clk 0:01:34.2]} 17. Bb2 {[%clk 0:01:06.2]} 17... Nxg4 {[%clk 0:00:55.7]}
18. Nxg6 {[%clk 0:01:05.3]} 18... Bxf2+ {[%clk 0:00:39.6]} 19. Kh1 {[%clk
0:01:05.2]} 19... fxg6 {[%clk 0:00:37.6]} 20. Nf1 {[%clk 0:01:03.9]} 20... Qh4
{[%clk 0:00:34.8]} 21. Rd3 {[%clk 0:00:58.7]} 21... Ne3 {[%clk 0:00:30.1]} 22.
Rxe3 {[%clk 0:00:50.3]} 22... Bxe3 {[%clk 0:00:28.9]} 23. Qg2 {[%clk 0:00:50.9]}
23... Rf2 {[%clk 0:00:22.4]} 24. Qg4 {[%clk 0:00:24.7]} 24... Qxg4 {[%clk
0:00:11]} 25. hxg4 {[%clk 0:00:25.6]} 25... Bf4 {[%clk 0:00:11.3]} 26. b4+
{[%clk 0:00:23.9]} 26... Kh8 {[%clk 0:00:10.6]} 27. Ba3 {[%clk 0:00:22.4]} 27...
Rd3 {[%clk 0:00:10.3]} 28. bxa5 {[%clk 0:00:22.4]} 28... Rh3+ {[%clk 0:00:08.9]}
29. Kg1 {[%clk 0:00:22.9]} 29... Rc2 {[%clk 0:00:08.2]} 30. axb6 {[%clk
0:00:18.8]} 30... Be3+ {[%clk 0:00:08.2]} 31. Nxe3 {[%clk 0:00:18.4]} 31... Rg3+
{[%clk 0:00:08.2]} 32. Kh1 {[%clk 0:00:10.8]} 32... Rh3+ {[%clk 0:00:07.2]} 33.
Kg1 {[%clk 0:00:10.4]} 33... Rg3+ {[%clk 0:00:07.5]} 34. Kf1 {[%clk 0:00:10.1]}
34... Rf3+ {[%clk 0:00:07.1]} 35. Kg1 {[%clk 0:00:09.1]} 35... Rg3+ {[%clk
0:00:06.6]} 1/2-1/2

[Event "*** Titled Tuesday Blitz"]
[Site "Chess.com"]
[Date "2021.03.09"]
[Round "9"]
[White "howitzer14"]
[Black "BillieKimbah"]
[Result "1-0"]
[WhiteElo "3041"]
[BlackElo "2867"]
[TimeControl "180+1"]
[EndTime "11:47:51 PST"]
[Termination "howitzer14 won on time"]

1. b3 {[%clk 0:02:59.6]} 1... d5 {[%clk 0:02:58.6]} 2. Bb2 {[%clk 0:02:57.6]}
2... Bf5 {[%clk 0:02:58.8]} 3. d3 {[%clk 0:02:54]} 3... e6 {[%clk 0:02:58.7]} 4.
Nd2 {[%clk 0:02:54.2]} 4... Nf6 {[%clk 0:02:58.8]} 5. e3 {[%clk 0:02:53]} 5...
h6 {[%clk 0:02:58.3]} 6. Ne2 {[%clk 0:02:52]} 6... Be7 {[%clk 0:02:57.9]} 7. a3
{[%clk 0:02:52.5]} 7... O-O {[%clk 0:02:56.9]} 8. h3 {[%clk 0:02:52.3]} 8... Bh7
{[%clk 0:02:56.4]} 9. g4 {[%clk 0:02:52.5]} 9... c5 {[%clk 0:02:55.9]} 10. Ng3
{[%clk 0:02:50.9]} 10... Nc6 {[%clk 0:02:55.2]} 11. h4 {[%clk 0:02:49.7]} 11...
d4 {[%clk 0:02:49.1]} 12. e4 {[%clk 0:02:21.5]} 12... Nd7 {[%clk 0:02:32.3]} 13.
g5 {[%clk 0:02:20.8]} 13... hxg5 {[%clk 0:02:25.6]} 14. hxg5 {[%clk 0:02:17.8]}
14... Bxg5 {[%clk 0:02:26.5]} 15. Qh5 {[%clk 0:02:18.1]} 15... Bh6 {[%clk
0:02:26.2]} 16. f4 {[%clk 0:01:54]} 16... e5 {[%clk 0:02:23.3]} 17. f5 {[%clk
0:01:49.3]} 17... Qg5 {[%clk 0:02:21.5]} 18. Qh2 {[%clk 0:01:43.3]} 18... Qe3+
{[%clk 0:02:15.3]} 19. Kd1 {[%clk 0:01:43.4]} 19... Nf6 {[%clk 0:00:58.2]} 20.
Nc4 {[%clk 0:01:42]} 20... Ng4 {[%clk 0:00:58.3]} 21. Nxe3 {[%clk 0:01:37]}
21... Nxh2 {[%clk 0:00:58]} 22. Nd5 {[%clk 0:01:30.9]} 22... Nxf1 {[%clk
0:00:57.3]} 23. Nxf1 {[%clk 0:01:23.7]} 23... f6 {[%clk 0:00:56.9]} 24. Bc1
{[%clk 0:01:19.7]} 24... Bxc1 {[%clk 0:00:54.8]} 25. Kxc1 {[%clk 0:01:20.6]}
25... g6 {[%clk 0:00:54.2]} 26. Ng3 {[%clk 0:01:14.9]} 26... gxf5 {[%clk
0:00:54.2]} 27. exf5 {[%clk 0:01:06.2]} 27... Rf7 {[%clk 0:00:49.2]} 28. Ne4
{[%clk 0:01:03.3]} 28... Bxf5 {[%clk 0:00:47.3]} 29. Ndxf6+ {[%clk 0:01:03]}
29... Kg7 {[%clk 0:00:41.3]} 30. Rg1+ {[%clk 0:00:57.2]} 30... Bg6 {[%clk
0:00:40.6]} 31. Nh5+ {[%clk 0:00:53.8]} 31... Kh6 {[%clk 0:00:40.7]} 32. Nhg3
{[%clk 0:00:53.5]} 32... Raf8 {[%clk 0:00:38.1]} 33. Kb2 {[%clk 0:00:52.9]}
33... b6 {[%clk 0:00:38]} 34. Rh1+ {[%clk 0:00:46.3]} 34... Kg7 {[%clk
0:00:38.1]} 35. Rag1 {[%clk 0:00:47]} 35... Rg8 {[%clk 0:00:05.4]} 36. Nh5+
{[%clk 0:00:29.6]} 36... Kf8 {[%clk 0:00:05.8]} 37. Nhf6 {[%clk 0:00:30.2]}
37... Bxe4 {[%clk 0:00:02.1]} 38. Rxg8+ {[%clk 0:00:29.1]} 38... Ke7 {[%clk
0:00:01.7]} 39. Nxe4 {[%clk 0:00:30]} 1-0

[Event "*** Titled Tuesday Blitz"]
[Site "Chess.com"]
[Date "2021.03.09"]
[Round "9"]
[White "Harry_Rakkel"]
[Black "arctic_t00"]
[Result "1-0"]
[WhiteElo "2642"]
[BlackElo "2533"]
[TimeControl "180+1"]
[EndTime "11:47:51 PST"]
[Termination "Harry_Rakkel won on time"]

1. e4 {[%clk 0:03:00.9]} 1... e6 {[%clk 0:02:59.2]} 2. d3 {[%clk 0:02:59.8]}
2... c5 {[%clk 0:02:58.8]} 3. g3 {[%clk 0:02:58.4]} 3... Nc6 {[%clk 0:02:58.9]}
4. f4 {[%clk 0:02:56.1]} 4... d6 {[%clk 0:02:54.5]} 5. Nf3 {[%clk 0:02:54.4]}
5... g6 {[%clk 0:02:54.5]} 6. Bg2 {[%clk 0:02:53.5]} 6... Bg7 {[%clk 0:02:55.1]}
7. O-O {[%clk 0:02:53]} 7... Nge7 {[%clk 0:02:55.7]} 8. c3 {[%clk 0:02:52]} 8...
O-O {[%clk 0:02:54.8]} 9. Na3 {[%clk 0:02:51.4]} 9... Rb8 {[%clk 0:02:53.7]} 10.
Be3 {[%clk 0:02:41.8]} 10... b5 {[%clk 0:02:53.1]} 11. d4 {[%clk 0:02:41.1]}
11... b4 {[%clk 0:02:50.7]} 12. Nc2 {[%clk 0:02:31.3]} 12... bxc3 {[%clk
0:02:48.4]} 13. bxc3 {[%clk 0:02:32.2]} 13... Ba6 {[%clk 0:02:43.5]} 14. Rf2
{[%clk 0:02:27.6]} 14... cxd4 {[%clk 0:01:56.4]} 15. cxd4 {[%clk 0:02:26.5]}
15... d5 {[%clk 0:01:56.7]} 16. e5 {[%clk 0:02:21.5]} 16... Nf5 {[%clk
0:01:56.5]} 17. Bc1 {[%clk 0:02:19.9]} 17... h5 {[%clk 0:01:48.5]} 18. Bf1
{[%clk 0:01:59.6]} 18... Bxf1 {[%clk 0:01:46.1]} 19. Qxf1 {[%clk 0:02:00.5]}
19... Re8 {[%clk 0:01:39.6]} 20. Kg2 {[%clk 0:01:45.3]} 20... Qb6 {[%clk
0:01:39.6]} 21. Qd3 {[%clk 0:01:42.9]} 21... Qb5 {[%clk 0:01:33.5]} 22. Qxb5
{[%clk 0:01:39.9]} 22... Rxb5 {[%clk 0:01:34.4]} 23. h3 {[%clk 0:01:39.7]} 23...
Reb8 {[%clk 0:00:56.1]} 24. g4 {[%clk 0:01:32.8]} 24... hxg4 {[%clk 0:00:57]}
25. hxg4 {[%clk 0:01:32.9]} 25... Nfe7 {[%clk 0:00:57.9]} 26. Ba3 {[%clk
0:01:27.2]} 26... Nc8 {[%clk 0:00:55.4]} 27. f5 {[%clk 0:01:23.1]} 27... gxf5
{[%clk 0:00:33.2]} 28. gxf5 {[%clk 0:01:22.4]} 28... exf5 {[%clk 0:00:34.1]} 29.
Ne3 {[%clk 0:01:20.3]} 29... N8e7 {[%clk 0:00:21.2]} 30. Rh1 {[%clk 0:01:03]}
30... Rb1 {[%clk 0:00:20.8]} 31. Rh5 {[%clk 0:01:02]} 31... f4 {[%clk
0:00:15.1]} 32. Ng4 {[%clk 0:00:57.7]} 32... Ng6 {[%clk 0:00:14.9]} 33. Rc2
{[%clk 0:00:48.8]} 33... Nb4 {[%clk 0:00:09]} 34. Rc7 {[%clk 0:00:40]} 34...
Nxa2 {[%clk 0:00:07.5]} 35. e6 {[%clk 0:00:33.4]} 35... fxe6 {[%clk 0:00:05.2]}
36. Rg5 {[%clk 0:00:33.7]} 36... Kh7 {[%clk 0:00:02.3]} 37. Nfe5 {[%clk
0:00:24.3]} 1-0

[Event "*** Titled Tuesday Blitz"]
[Site "Chess.com"]
[Date "2021.03.09"]
[Round "9"]
[White "Nf3c5"]
[Black "Savagelittlemole"]
[Result "1-0"]
[WhiteElo "2631"]
[BlackElo "2524"]
[TimeControl "180+1"]
[EndTime "11:47:51 PST"]
[Termination "Nf3c5 won by checkmate"]

1. d4 {[%clk 0:03:00]} 1... Nf6 {[%clk 0:02:56]} 2. Bf4 {[%clk 0:02:59.9]} 2...
d6 {[%clk 0:02:55.2]} 3. Nc3 {[%clk 0:02:59]} 3... Nbd7 {[%clk 0:02:55.1]} 4.
Nf3 {[%clk 0:02:58.9]} 4... g6 {[%clk 0:02:54.8]} 5. e4 {[%clk 0:02:58.6]} 5...
Bg7 {[%clk 0:02:54.6]} 6. Qd2 {[%clk 0:02:58.8]} 6... O-O {[%clk 0:02:53.9]} 7.
O-O-O {[%clk 0:02:57.3]} 7... c5 {[%clk 0:02:52.2]} 8. Bh6 {[%clk 0:02:43.8]}
8... cxd4 {[%clk 0:02:50.7]} 9. Nxd4 {[%clk 0:02:43.5]} 9... Nc5 {[%clk
0:02:50.4]} 10. Bxg7 {[%clk 0:02:43]} 10... Kxg7 {[%clk 0:02:48.2]} 11. f3
{[%clk 0:02:43.9]} 11... a6 {[%clk 0:02:47.7]} 12. h4 {[%clk 0:02:43.8]} 12...
h5 {[%clk 0:02:43.7]} 13. Be2 {[%clk 0:02:36.7]} 13... b5 {[%clk 0:02:42.2]} 14.
a3 {[%clk 0:02:25.5]} 14... Qb6 {[%clk 0:02:34.4]} 15. Rhe1 {[%clk 0:02:23.3]}
15... b4 {[%clk 0:02:34.5]} 16. axb4 {[%clk 0:02:21.9]} 16... Qxb4 {[%clk
0:02:34.8]} 17. Nb1 {[%clk 0:01:47.4]} 17... Qxd2+ {[%clk 0:02:26.1]} 18. Rxd2
{[%clk 0:01:46.9]} 18... Bb7 {[%clk 0:02:26.5]} 19. Nc3 {[%clk 0:01:45.4]} 19...
Rfc8 {[%clk 0:02:23.9]} 20. Bf1 {[%clk 0:01:43.8]} 20... Nfd7 {[%clk 0:02:09.4]}
21. g3 {[%clk 0:01:39.8]} 21... Ne5 {[%clk 0:02:08.3]} 22. Nd5 {[%clk
0:01:21.7]} 22... Bxd5 {[%clk 0:02:07]} 23. exd5 {[%clk 0:01:22.6]} 23... Rc7
{[%clk 0:01:50.8]} 24. f4 {[%clk 0:01:15.1]} 24... Ng4 {[%clk 0:01:47.1]} 25.
Bh3 {[%clk 0:01:11.9]} 25... Nf6 {[%clk 0:01:43.9]} 26. Bg2 {[%clk 0:01:10.9]}
26... a5 {[%clk 0:01:17.6]} 27. Rde2 {[%clk 0:01:09.4]} 27... a4 {[%clk
0:01:07.7]} 28. Rxe7 {[%clk 0:01:04.6]} 28... Rxe7 {[%clk 0:01:07.7]} 29. Rxe7
{[%clk 0:01:05.5]} 29... a3 {[%clk 0:01:08.3]} 30. bxa3 {[%clk 0:01:01.9]} 30...
Rxa3 {[%clk 0:01:08.2]} 31. Ne6+ {[%clk 0:01:02.3]} 31... Nxe6 {[%clk
0:01:06.2]} 32. dxe6 {[%clk 0:01:03.2]} 32... Ng8 {[%clk 0:00:28.8]} 33. Rxf7+
{[%clk 0:01:00.5]} 33... Kh6 {[%clk 0:00:27.9]} 34. Bd5 {[%clk 0:00:40.7]} 34...
Rxg3 {[%clk 0:00:21]} 35. Kd2 {[%clk 0:00:36.1]} 35... Ra3 {[%clk 0:00:15]} 36.
e7 {[%clk 0:00:33.9]} 36... Nxe7 {[%clk 0:00:11.6]} 37. Rxe7 {[%clk 0:00:33.6]}
37... Rh3 {[%clk 0:00:12.1]} 38. Bg8 {[%clk 0:00:31.6]} 38... g5 {[%clk
0:00:06.9]} 39. hxg5+ {[%clk 0:00:26.4]} 39... Kg6 {[%clk 0:00:07.3]} 40. Bh7#
{[%clk 0:00:25.9]} 1-0

[Event "*** Titled Tuesday Blitz"]
[Site "Chess.com"]
[Date "2021.03.09"]
[Round "9"]
[White "Gerasimenyuk_Miha"]
[Black "barbara25"]
[Result "0-1"]
[WhiteElo "2426"]
[BlackElo "2297"]
[TimeControl "180+1"]
[EndTime "11:47:52 PST"]
[Termination "barbara25 won by resignation"]

1. d4 {[%clk 0:02:56.3]} 1... d5 {[%clk 0:02:59.2]} 2. Nf3 {[%clk 0:02:54.4]}
2... Nf6 {[%clk 0:02:57.2]} 3. Bg5 {[%clk 0:02:54.5]} 3... e6 {[%clk 0:02:57.4]}
4. e3 {[%clk 0:02:54.2]} 4... Be7 {[%clk 0:02:57.3]} 5. Nbd2 {[%clk 0:02:54.6]}
5... O-O {[%clk 0:02:56.9]} 6. Bd3 {[%clk 0:02:54]} 6... b6 {[%clk 0:02:56.9]}
7. c3 {[%clk 0:02:52.8]} 7... Ba6 {[%clk 0:02:55]} 8. Bb1 {[%clk 0:02:52.5]}
8... c5 {[%clk 0:02:54.1]} 9. h4 {[%clk 0:02:52.6]} 9... Nbd7 {[%clk 0:02:53.9]}
10. Ne5 {[%clk 0:02:52.3]} 10... Nxe5 {[%clk 0:02:52.6]} 11. dxe5 {[%clk
0:02:53.2]} 11... Nd7 {[%clk 0:02:52.8]} 12. f4 {[%clk 0:02:50.4]} 12... Re8
{[%clk 0:02:45.8]} 13. Qh5 {[%clk 0:02:39.7]} 13... Nf8 {[%clk 0:02:44.7]} 14.
Rh3 {[%clk 0:02:35.9]} 14... Qd7 {[%clk 0:02:33.3]} 15. Rg3 {[%clk 0:02:35.2]}
15... Ng6 {[%clk 0:02:32.3]} 16. Qg4 {[%clk 0:02:27.6]} 16... Bxg5 {[%clk
0:02:04.4]} 17. hxg5 {[%clk 0:02:24.3]} 17... Qb5 {[%clk 0:02:03.8]} 18. b3
{[%clk 0:02:09.6]} 18... d4 {[%clk 0:01:49]} 19. a4 {[%clk 0:02:05.1]} 19... Qd7
{[%clk 0:01:48.4]} 20. exd4 {[%clk 0:01:59.2]} 20... cxd4 {[%clk 0:01:48.5]} 21.
c4 {[%clk 0:01:59.2]} 21... d3 {[%clk 0:01:46.2]} 22. Bxd3 {[%clk 0:01:50.8]}
22... Qd4 {[%clk 0:01:46.1]} 23. O-O-O {[%clk 0:01:44.2]} 23... Red8 {[%clk
0:01:40]} 24. Kc2 {[%clk 0:01:32.2]} 24... Nxf4 {[%clk 0:01:33.6]} 25. Ne4
{[%clk 0:01:14.5]} 25... Ng6 {[%clk 0:01:16.1]} 26. Rh3 {[%clk 0:00:39.5]} 26...
Qxe5 {[%clk 0:00:53.6]} 27. Qh5 {[%clk 0:00:35.4]} 27... Bb7 {[%clk 0:00:44.6]}
28. Qxh7+ {[%clk 0:00:33.9]} 28... Kf8 {[%clk 0:00:44.8]} 29. Nc3 {[%clk
0:00:26.9]} 29... Qxg5 {[%clk 0:00:30.1]} 30. Bxg6 {[%clk 0:00:21.3]} 30...
Qxg6+ {[%clk 0:00:27.8]} 31. Qxg6 {[%clk 0:00:20.6]} 31... fxg6 {[%clk
0:00:28.7]} 32. Rf1+ {[%clk 0:00:16.6]} 32... Kg8 {[%clk 0:00:28.3]} 33. Rg3
{[%clk 0:00:15]} 33... Rf8 {[%clk 0:00:25.2]} 34. Re1 {[%clk 0:00:14.3]} 34...
Rf2+ {[%clk 0:00:24.5]} 35. Re2 {[%clk 0:00:14.8]} 35... Raf8 {[%clk 0:00:21]}
36. Rxg6 {[%clk 0:00:13.1]} 36... Rxe2+ {[%clk 0:00:19]} 37. Nxe2 {[%clk
0:00:12.9]} 37... Be4+ {[%clk 0:00:19.3]} 0-1

[Event "*** Titled Tuesday Blitz"]
[Site "Chess.com"]
[Date "2021.03.09"]
[Round "9"]
[White "VladimirBugayev"]
[Black "gatocorbis"]
[Result "1-0"]
[WhiteElo "2258"]
[BlackElo "2100"]
[TimeControl "180+1"]
[EndTime "11:47:54 PST"]
[Termination "VladimirBugayev won on time"]

1. e4 {[%clk 0:03:00.9]} 1... c5 {[%clk 0:02:59.3]} 2. Nc3 {[%clk 0:02:58]} 2...
g6 {[%clk 0:02:57.8]} 3. d4 {[%clk 0:02:55]} 3... Bg7 {[%clk 0:02:57.2]} 4. dxc5
{[%clk 0:02:53]} 4... Bxc3+ {[%clk 0:02:56.3]} 5. bxc3 {[%clk 0:02:52.3]} 5...
Qa5 {[%clk 0:02:51.9]} 6. Ne2 {[%clk 0:02:49.3]} 6... Qxc5 {[%clk 0:02:50.1]} 7.
Be3 {[%clk 0:02:48.9]} 7... Qc7 {[%clk 0:02:47]} 8. g3 {[%clk 0:02:45.8]} 8...
d6 {[%clk 0:02:43]} 9. Bg2 {[%clk 0:02:46.1]} 9... Nc6 {[%clk 0:02:41.7]} 10.
O-O {[%clk 0:02:42.9]} 10... Nf6 {[%clk 0:02:40.4]} 11. Nd4 {[%clk 0:02:41.7]}
11... Bd7 {[%clk 0:02:38.3]} 12. Qd3 {[%clk 0:02:41.1]} 12... Ne5 {[%clk
0:02:35.1]} 13. Qe2 {[%clk 0:02:10.7]} 13... O-O {[%clk 0:02:33.5]} 14. h3
{[%clk 0:01:59.4]} 14... Qxc3 {[%clk 0:02:20.1]} 15. Rab1 {[%clk 0:01:56.2]}
15... Qc7 {[%clk 0:02:06.3]} 16. f4 {[%clk 0:01:52.6]} 16... Nc4 {[%clk
0:02:05.5]} 17. Bf2 {[%clk 0:01:53.1]} 17... a6 {[%clk 0:01:57.1]} 18. e5 {[%clk
0:01:46.3]} 18... dxe5 {[%clk 0:01:54.2]} 19. fxe5 {[%clk 0:01:46]} 19... Nxe5
{[%clk 0:01:44.7]} 20. Rxb7 {[%clk 0:01:43.8]} 20... Qd6 {[%clk 0:01:44]} 21.
Rd1 {[%clk 0:01:40.5]} 21... Rad8 {[%clk 0:01:34.1]} 22. Nf5 {[%clk 0:01:15.1]}
22... Qe6 {[%clk 0:01:17.9]} 23. Ne3 {[%clk 0:00:45.1]} 23... Bc6 {[%clk
0:01:09.5]} 24. Rb6 {[%clk 0:00:36.7]} 24... Rxd1+ {[%clk 0:00:38.2]} 25. Nxd1
{[%clk 0:00:34.6]} 25... Qd6 {[%clk 0:00:30.3]} 26. Bxc6 {[%clk 0:00:24.6]}
26... Nxc6 {[%clk 0:00:28.5]} 27. Qf3 {[%clk 0:00:23.2]} 27... Rc8 {[%clk
0:00:20.9]} 28. Nc3 {[%clk 0:00:22.4]} 28... Qd7 {[%clk 0:00:15.5]} 29. Qe3
{[%clk 0:00:16.3]} 29... Nd5 {[%clk 0:00:07]} 30. Nxd5 {[%clk 0:00:15.6]} 30...
Qxd5 {[%clk 0:00:06.3]} 31. Rxa6 {[%clk 0:00:14.5]} 31... Qd1+ {[%clk
0:00:04.8]} 32. Kh2 {[%clk 0:00:13.3]} 32... Qd5 {[%clk 0:00:04]} 33. Qc5 {[%clk
0:00:10.5]} 33... Qf3 {[%clk 0:00:02.4]} 34. Qe3 {[%clk 0:00:09.4]} 1-0

[Event "*** Titled Tuesday Blitz"]
[Site "Chess.com"]
[Date "2021.03.09"]
[Round "9"]
[White "MasterKroket"]
[Black "tk22h"]
[Result "0-1"]
[WhiteElo "2451"]
[BlackElo "2358"]
[TimeControl "180+1"]
[EndTime "11:47:56 PST"]
[Termination "tk22h won by checkmate"]

1. d4 {[%clk 0:03:00.9]} 1... Nf6 {[%clk 0:02:52.4]} 2. c4 {[%clk 0:03:01.4]}
2... c5 {[%clk 0:02:50.9]} 3. d5 {[%clk 0:03:01.3]} 3... e5 {[%clk 0:02:51]} 4.
Nc3 {[%clk 0:03:01]} 4... d6 {[%clk 0:02:51.2]} 5. Bg5 {[%clk 0:02:59.2]} 5...
Be7 {[%clk 0:02:51]} 6. e3 {[%clk 0:02:59.4]} 6... a6 {[%clk 0:02:34.7]} 7. h4
{[%clk 0:02:56.9]} 7... h6 {[%clk 0:02:34.1]} 8. Bxf6 {[%clk 0:02:56.3]} 8...
Bxf6 {[%clk 0:02:35]} 9. h5 {[%clk 0:02:56.4]} 9... Bf5 {[%clk 0:02:30.3]} 10.
Bd3 {[%clk 0:02:53.1]} 10... Qd7 {[%clk 0:02:27.4]} 11. Nge2 {[%clk 0:02:49.5]}
11... O-O {[%clk 0:02:24.9]} 12. Ng3 {[%clk 0:02:47.7]} 12... Bxd3 {[%clk
0:02:24.4]} 13. Qxd3 {[%clk 0:02:48.3]} 13... b5 {[%clk 0:02:21.7]} 14. Nce4
{[%clk 0:02:45]} 14... Be7 {[%clk 0:02:21.1]} 15. Nd2 {[%clk 0:02:38.9]} 15...
f5 {[%clk 0:02:20.1]} 16. e4 {[%clk 0:02:38.1]} 16... f4 {[%clk 0:02:14.3]} 17.
Nf5 {[%clk 0:02:38.4]} 17... Rxf5 {[%clk 0:02:12.3]} 18. exf5 {[%clk 0:02:38.4]}
18... bxc4 {[%clk 0:02:09.3]} 19. Nxc4 {[%clk 0:02:37.4]} 19... Ra7 {[%clk
0:02:08.5]} 20. O-O {[%clk 0:02:21.9]} 20... Rb7 {[%clk 0:02:07.5]} 21. b3
{[%clk 0:02:21.6]} 21... Bf8 {[%clk 0:02:04.1]} 22. Rfe1 {[%clk 0:02:09.8]}
22... Qf7 {[%clk 0:02:03.7]} 23. Qh3 {[%clk 0:01:58.1]} 23... Nd7 {[%clk
0:01:59.5]} 24. Rad1 {[%clk 0:01:52.9]} 24... Nf6 {[%clk 0:01:58.8]} 25. Na5
{[%clk 0:01:42.9]} 25... Rc7 {[%clk 0:01:55.4]} 26. Rc1 {[%clk 0:01:28.8]} 26...
Nxd5 {[%clk 0:01:33.2]} 27. Red1 {[%clk 0:01:22.1]} 27... Nb4 {[%clk 0:01:20.7]}
28. Nc4 {[%clk 0:01:17.8]} 28... Rd7 {[%clk 0:01:15.4]} 29. a3 {[%clk
0:01:16.1]} 29... Nc6 {[%clk 0:01:14.7]} 30. b4 {[%clk 0:01:03.8]} 30... Nd4
{[%clk 0:01:09.3]} 31. Kf1 {[%clk 0:00:57]} 31... cxb4 {[%clk 0:01:06.6]} 32.
axb4 {[%clk 0:00:55.8]} 32... Rb7 {[%clk 0:00:59]} 33. Qc3 {[%clk 0:00:40.4]}
33... Qxh5 {[%clk 0:00:52.8]} 34. Rxd4 {[%clk 0:00:40.5]} 34... exd4 {[%clk
0:00:48.8]} 35. Qd2 {[%clk 0:00:28.6]} 35... Qxf5 {[%clk 0:00:47.5]} 36. Qxd4
{[%clk 0:00:23.6]} 36... d5 {[%clk 0:00:44.1]} 37. Ne5 {[%clk 0:00:20.1]} 37...
Qe4 {[%clk 0:00:43.5]} 38. Qxe4 {[%clk 0:00:17.2]} 38... dxe4 {[%clk 0:00:43.6]}
39. Ra1 {[%clk 0:00:14.7]} 39... Rxb4 {[%clk 0:00:34.9]} 40. Rxa6 {[%clk
0:00:13.1]} 40... Rb1+ {[%clk 0:00:34.3]} 41. Ke2 {[%clk 0:00:13.2]} 41... Rb2+
{[%clk 0:00:34.6]} 42. Kf1 {[%clk 0:00:13.4]} 42... Bc5 {[%clk 0:00:34.5]} 43.
f3 {[%clk 0:00:08.1]} 43... e3 {[%clk 0:00:31.3]} 44. g4 {[%clk 0:00:06.9]}
44... e2+ {[%clk 0:00:29.4]} 45. Ke1 {[%clk 0:00:06.7]} 45... Bb4+ {[%clk
0:00:29.6]} 46. Kf2 {[%clk 0:00:06.3]} 46... e1=Q# {[%clk 0:00:29.5]} 0-1

[Event "*** Titled Tuesday Blitz"]
[Site "Chess.com"]
[Date "2021.03.09"]
[Round "9"]
[White "Sadykov_Ramil"]
[Black "Chernov_Mikhail"]
[Result "0-1"]
[WhiteElo "2553"]
[BlackElo "2415"]
[TimeControl "180+1"]
[EndTime "11:47:58 PST"]
[Termination "Chernov_Mikhail won by resignation"]

1. d4 {[%clk 0:03:00.9]} 1... d5 {[%clk 0:02:42.5]} 2. Bf4 {[%clk 0:02:57.1]}
2... Nf6 {[%clk 0:02:41.5]} 3. Nc3 {[%clk 0:02:55]} 3... c6 {[%clk 0:02:39.2]}
4. Qd3 {[%clk 0:02:53.7]} 4... Bg4 {[%clk 0:02:32.6]} 5. f3 {[%clk 0:02:49.2]}
5... Bh5 {[%clk 0:02:32.3]} 6. e4 {[%clk 0:02:46.6]} 6... Bg6 {[%clk 0:02:30.7]}
7. O-O-O {[%clk 0:02:42]} 7... Nbd7 {[%clk 0:02:24.2]} 8. Qe3 {[%clk 0:02:36.9]}
8... e6 {[%clk 0:02:17.1]} 9. Bd3 {[%clk 0:02:19.7]} 9... Qa5 {[%clk 0:02:11.3]}
10. Nge2 {[%clk 0:02:15.8]} 10... Be7 {[%clk 0:01:56.3]} 11. h4 {[%clk
0:02:02.8]} 11... dxe4 {[%clk 0:01:35.4]} 12. fxe4 {[%clk 0:01:57.7]} 12... h6
{[%clk 0:01:27]} 13. e5 {[%clk 0:01:52.9]} 13... Bxd3 {[%clk 0:01:18.7]} 14.
Qxd3 {[%clk 0:01:34.1]} 14... Nd5 {[%clk 0:01:15.9]} 15. Nxd5 {[%clk 0:01:21.7]}
15... cxd5 {[%clk 0:01:16.8]} 16. Kb1 {[%clk 0:01:21.2]} 16... O-O {[%clk
0:01:09.7]} 17. Rh3 {[%clk 0:01:11.6]} 17... b5 {[%clk 0:01:05.8]} 18. Rf1
{[%clk 0:00:39]} 18... Qd8 {[%clk 0:00:53]} 19. Qe3 {[%clk 0:00:31.7]} 19... Kh7
{[%clk 0:00:46.1]} 20. g4 {[%clk 0:00:25.9]} 20... Nb6 {[%clk 0:00:31.4]} 21.
Qd3+ {[%clk 0:00:17.9]} 21... Kh8 {[%clk 0:00:28.3]} 22. g5 {[%clk 0:00:15.8]}
22... h5 {[%clk 0:00:28.5]} 23. g6 {[%clk 0:00:16]} 23... Nc4 {[%clk 0:00:20.9]}
24. Bg5 {[%clk 0:00:13.4]} 24... fxg6 {[%clk 0:00:18.7]} 25. Rhf3 {[%clk
0:00:11.7]} 25... Rxf3 {[%clk 0:00:17.5]} 26. Rxf3 {[%clk 0:00:12.6]} 26... Bxg5
{[%clk 0:00:18]} 27. hxg5 {[%clk 0:00:10.7]} 27... Qxg5 {[%clk 0:00:18.9]} 28.
a3 {[%clk 0:00:09.1]} 28... Nd2+ {[%clk 0:00:18]} 29. Ka2 {[%clk 0:00:08.3]}
29... Nxf3 {[%clk 0:00:18.3]} 30. Qxf3 {[%clk 0:00:09.2]} 30... Qg4 {[%clk
0:00:17.1]} 31. Qf1 {[%clk 0:00:06.4]} 31... h4 {[%clk 0:00:15.7]} 32. c3 {[%clk
0:00:04.3]} 32... h3 {[%clk 0:00:15]} 33. Nf4 {[%clk 0:00:04.8]} 33... h2 {[%clk
0:00:11.9]} 34. Qf2 {[%clk 0:00:02.3]} 34... h1=Q {[%clk 0:00:11.2]} 0-1